fUSD/lending_fUSD_20251105
["ID","MTS","AMOUNT","RATE_DAILY","PERIOD"]
[393194825,1762309854948,-1000.0,0.00038169,7]
[393194826,1762309854960,-1425.0,0.00038173,2]
[393194827,1762309854970,-1425.0,0.00038176,2]
[393194828,1762309854980,-300.62368071,0.00038177,2]
[393194829,1762309854991,-8197.5825012,0.00038177,2]
[393194830,1762309855003,-445.29150389,0.00038182,2]
[393194831,1762309855016,-991.36519092,0.00038182,2]
[393194832,1762309855028,-239.38900133,0.00038182,2]
[393194833,1762309855039,-371.76424894,0.00038182,2]
[393194834,1762309855050,-830.25443681,0.00038182,2]
[393194835,1762309855060,-465.17788788,0.00038182,15]
[393194836,1762309855071,-235.56951741,0.00038188,120]
[393194837,1762309855081,-407.245394,0.00038188,31]
[393194838,1762309855093,-151.0,0.00038188,31]
[393194839,1762309855104,-407.245394,0.00038188,31]
[393194840,1762309855115,-407.245394,0.00038188,31]
[393194841,1762309855126,-151.0,0.00038188,31]
[393194842,1762309855137,-407.245394,0.00038188,31]
[393194843,1762309855148,-151.0,0.00038188,31]
[393194844,1762309855159,-151.0,0.00038188,31]
[393194845,1762309855170,-165.940416,0.00038188,31]
[393194846,1762309855180,-1000.0,0.00038199,2]
[393194847,1762309855191,-2000.0,0.00038199,2]
[393194848,1762309855202,-500.0,0.00038199,120]
[393194849,1762309855215,-500.0,0.00038199,30]
[393194850,1762309855226,-150.0,0.000382,60]
[393194851,1762309855237,-232.32,0.000382,4]
[393194852,1762309855248,-171.562166,0.000382,26]
[393194853,1762309855259,-184.12,0.000382,37]
[393194854,1762309855270,-184.12,0.000382,37]
[393194855,1762309855290,-592.039394,0.000382,26]
[393194856,1762309855300,-200.0,0.000382,16]
[393194857,1762309855310,-538.86,0.00038223,120]
[393194858,1762309855320,-500.0,0.00038239,120]
[393194859,1762309855331,-17044.0,0.00038247,120]
[393194860,1762309855344,-1430.0,0.00038247,30]
[393194861,1762309855355,-1000.0,0.00038254,7]
[393194862,1762309855364,-500.0,0.00038257,120]
[393194863,1762309855373,-194.126306,0.00038257,120]
[393194864,1762309855382,-555.395878,0.00038257,120]
[393194865,1762309855391,-500.0,0.00038257,120]
[393194866,1762309855400,-538.86,0.00038263,120]
[393194867,1762309855409,-538.86,0.00038263,120]
[393194868,1762309855418,-154.051706,0.00038265,31]
[393194869,1762309855427,-153.163445,0.00038265,31]
[393194870,1762309855436,-151.0,0.00038265,31]
[393194871,1762309855445,-151.0,0.00038265,31]
[393194872,1762309855454,-500.0,0.00038267,14]
[393194873,1762309855463,-219.58511472,0.00038267,14]
[393194874,1762309855479,-280.41488528,0.00038267,14]
[393194875,1762309855488,-500.0,0.00038267,14]
[393194876,1762309855497,-500.0,0.00038267,14]
[393194877,1762309855506,-500.0,0.00038267,14]
[393194878,1762309855515,-287.3012341,0.00038267,14]
[393194879,1762309855527,-212.6987659,0.00038267,14]
[393194880,1762309855536,-500.0,0.00038267,14]
[393194881,1762309855544,-500.0,0.00038267,14]
[393194882,1762309855554,-500.0,0.00038267,14]
[393194883,1762309855563,-500.0,0.00038267,14]
[393194884,1762309855572,-500.0,0.00038267,14]
[393194885,1762309855580,-500.0,0.00038267,14]
[393194886,1762309855590,-217.57924863,0.00038267,14]
[393194887,1762309855606,-151.0,0.00032876,31]
[393194888,1762309855615,-282.42075137,0.00038267,14]
[393194889,1762309855624,-407.57924863,0.00038267,14]
[393194890,1762309855696,-3867.4977431,0.00021927,2]
[393194891,1762309855720,-3981.16016373,0.00021927,2]
[393194892,1762309855734,-1470.18382385,0.00021927,2]
[393194893,1762309855745,-3357.74630445,0.00021927,2]
[393194894,1762309855754,-151.0,0.0003699,31]
[393194895,1762309855763,-549.09,0.00037328,2]
[393194896,1762309855772,-150.0,0.00037962,7]
[393194897,1762309855782,-150.0,0.00038055,2]
[393194898,1762309855792,-151.0,0.00038076,31]
[393194899,1762309855802,-92.42075137,0.00038267,14]
[393194900,1762309855811,-500.0,0.00038267,14]
[393194901,1762309856116,-500.0,0.00038267,14]
[393194902,1762309856135,-500.0,0.00038269,14]
[393194903,1762309856152,-500.0,0.00038269,14]
[393194904,1762309856163,-500.0,0.00038269,14]
[393194905,1762309856172,-500.0,0.00038269,14]
[393194906,1762309856181,-500.0,0.00038269,14]
[393194907,1762309856191,-500.0,0.00038269,14]
[393194908,1762309856200,-500.0,0.00038269,14]
[393194909,1762309856211,-262.65124234,0.00038269,14]
[393194910,1762309856221,-1500.0,0.0003827,30]
[393194911,1762309856230,-1500.0,0.0003827,30]
[393194912,1762309856239,-1500.0,0.0003827,30]
[393194913,1762309856248,-1319.09170184,0.0003827,30]
[393194914,1762309856270,-180.90829816,0.0003827,30]
[393194915,1762309856279,-1500.0,0.0003827,30]
[393194916,1762309856288,-1901.92314782,0.00038272,2]
[393194917,1762309856299,-151.0,0.00038272,31]
[393194918,1762309856308,-151.0,0.00038272,31]
[393194919,1762309856317,-151.0,0.00038272,31]
[393194920,1762309856327,-407.245394,0.00038272,31]
[393194921,1762309856337,-407.245394,0.00038272,31]
[393194922,1762309856346,-151.0,0.00038272,31]
[393194923,1762309856354,-407.245394,0.00038272,31]
[393194924,1762309856363,-151.0,0.00038272,31]
[393194925,1762309856372,-407.245394,0.00038272,31]
[393194926,1762309856380,-407.245394,0.00038272,31]
[393194927,1762309856389,-407.245394,0.00038272,31]
[393194928,1762309856398,-151.0,0.00038272,31]
[393194929,1762309856407,-151.0,0.00038272,31]
[393194930,1762309856416,-407.245394,0.00038272,31]
[393194931,1762309856425,-151.0,0.00038272,31]
[393194932,1762309856434,-407.245386,0.00038272,31]
[393194933,1762309856443,-151.0,0.00038272,31]
[393194934,1762309856452,-151.0,0.00038272,31]
[393194935,1762309856461,-151.0,0.00038272,31]
[393194936,1762309856470,-151.0,0.00038272,15]
[393194937,1762309856479,-151.0,0.00038272,15]
[393194938,1762309856488,-151.0,0.00038272,15]
[393194939,1762309856497,-151.0,0.00038272,15]
[393194940,1762309856506,-163.975765,0.00038272,15]
[393194941,1762309856515,-1205.22,0.00038272,30]
[393194942,1762309856524,-150.0,0.00038273,5]
[393194943,1762309856532,-150.0,0.00038274,2]
[393194944,1762309856541,-150.0,0.00038274,2]
[393194945,1762309856553,-300.78,0.00038274,2]
[393194946,1762309856562,-488.48639348,0.00038274,2]
[393194947,1762309856571,-162.61,0.00038275,120]
[393194948,1762309856580,-1849.37693886,0.00038275,120]
[393194949,1762309856589,-495.67567222,0.00038276,30]
[393194950,1762309856598,-538.86,0.00038276,120]
[393194951,1762309856607,-538.86,0.00038276,120]
[393194952,1762309856616,-538.86,0.00038276,120]
[393194953,1762309856626,-538.86,0.00038276,120]
[393194954,1762309856635,-538.86,0.00038276,120]
[393194955,1762309856650,-538.86,0.00038276,120]
[393194956,1762309856660,-538.86,0.00038276,120]
[393194957,1762309856670,-538.86,0.00038276,120]
[393194958,1762309856679,-538.88175862,0.00038276,120]
[393194959,1762309856689,-161.0,0.00038276,7]
[393194960,1762309856698,-161.0,0.00038276,7]
[393194961,1762309856707,-152.0,0.00038276,7]
[393194962,1762309856717,-152.0,0.00038276,7]
[393194963,1762309856727,-455.84471793,0.00038276,7]
[393194964,1762309856740,-784.15528207,0.00038276,7]
[393194965,1762309856749,-161.0,0.00038276,7]
[393194966,1762309856758,-152.0,0.00038276,7]
[393194967,1762309856767,-152.0,0.00038276,7]
[393194968,1762309856777,-152.0,0.00038276,7]
[393194969,1762309856786,-1240.0,0.00038276,7]
[393194970,1762309856795,-152.0,0.00038276,7]
[393194971,1762309856804,-173.69310762,0.00038276,7]
[393194972,1762309856813,-152.0,0.00038276,7]
[393194973,1762309856822,-152.0,0.00038276,7]
[393194974,1762309856831,-169.67823999,0.00038276,7]
[393194975,1762309856840,-152.0,0.00038276,7]
[393194976,1762309856849,-152.0,0.00038276,7]
[393194977,1762309856858,-155.0,0.00038276,7]
[393194978,1762309856867,-152.0,0.00038276,7]
[393194979,1762309856875,-826.0,0.00038276,7]
[393194980,1762309856884,-152.0,0.00038276,7]
[393194981,1762309856893,-155.0,0.00038276,7]
[393194982,1762309856902,-152.0,0.00038276,7]
[393194983,1762309856911,-152.0,0.00038276,7]
[393194984,1762309856920,-155.0,0.00038276,7]
[393194985,1762309856929,-152.0,0.00038276,7]
[393194986,1762309856937,-215.81149452,0.00038276,7]
[393194987,1762309856947,-152.0,0.00038276,7]
[393194988,1762309856956,-826.0,0.00038276,7]
[393194989,1762309856967,-155.0,0.00038276,7]
[393194990,1762309856977,-152.0,0.00038276,7]
[393194991,1762309856987,-160.61910718,0.00038276,7]
[393194992,1762309856997,-845.14342852,0.00038276,7]
[393194993,1762309857007,-152.0,0.00038276,7]
[393194994,1762309857018,-152.0,0.00038276,7]
[393194995,1762309857027,-152.0,0.00038276,7]
[393194996,1762309857037,-152.0,0.00038276,7]
[393194997,1762309857046,-152.0,0.00038276,7]
[393194998,1762309857055,-152.0,0.00038276,7]
[393194999,1762309857064,-152.0,0.00038276,7]
[393195000,1762309857075,-152.0,0.00038276,7]
[393195001,1762309857084,-152.0,0.00038276,7]
[393195002,1762309857093,-152.0,0.00038276,7]
[393195003,1762309857102,-152.0,0.00038276,7]
[393195004,1762309857114,-152.0,0.00038276,7]
[393195005,1762309857123,-152.0,0.00038276,7]
[393195006,1762309857132,-152.0,0.00038276,7]
[393195007,1762309857141,-152.0,0.00038276,7]
[393195008,1762309857150,-152.0,0.00038276,7]
[393195009,1762309857159,-152.0,0.00038276,7]
[393195010,1762309857168,-152.0,0.00038276,7]
[393195011,1762309857178,-152.0,0.00038276,7]
[393195012,1762309857187,-152.0,0.00038276,7]
[393195013,1762309857196,-152.0,0.00038276,7]
[393195014,1762309857205,-152.0,0.00038276,7]
[393195015,1762309857213,-170.98183769,0.00038276,7]
[393195016,1762309857222,-152.0,0.00038276,7]
[393195017,1762309857231,-152.0,0.00038276,7]
[393195018,1762309857240,-152.0,0.00038276,7]
[393195019,1762309857248,-152.0,0.00038276,7]
[393195020,1762309857257,-152.0,0.00038276,7]
[393195021,1762309857266,-152.0,0.00038276,7]
[393195022,1762309857275,-152.0,0.00038276,7]
[393195023,1762309857283,-152.0,0.00038276,7]
[393195024,1762309857292,-152.0,0.00038276,7]
[393195025,1762309857301,-152.0,0.00038276,7]
[393195026,1762309857310,-152.0,0.00038276,7]
[393195027,1762309857318,-152.0,0.00038276,7]
[393195028,1762309857327,-165.91608098,0.00038276,7]
[393195029,1762309857336,-152.0,0.00038276,7]
[393195030,1762309857345,-152.0,0.00038276,7]
[393195031,1762309857354,-152.0,0.00038276,7]
[393195032,1762309857363,-152.0,0.00038276,7]
[393195033,1762309857372,-152.0,0.00038276,7]
[393195034,1762309857381,-152.0,0.00038276,7]
[393195035,1762309857390,-152.0,0.00038276,7]
[393195036,1762309857399,-152.0,0.00038276,7]
[393195037,1762309857407,-152.0,0.00038276,7]
[393195038,1762309857416,-151.29334686,0.00038276,7]
[393195039,1762309857425,-152.0,0.00038276,7]
[393195040,1762309857434,-152.0,0.00038276,7]
[393195041,1762309857443,-152.0,0.00038276,7]
[393195042,1762309857452,-152.0,0.00038276,7]
[393195043,1762309857461,-152.0,0.00038276,7]
[393195044,1762309857471,-152.0,0.00038276,7]
[393195045,1762309857479,-152.0,0.00038276,7]
[393195046,1762309857488,-152.0,0.00038276,7]
[393195047,1762309857497,-152.0,0.00038276,7]
[393195048,1762309857506,-152.0,0.00038276,7]
[393195049,1762309857515,-152.0,0.00038276,7]
[393195050,1762309857524,-152.0,0.00038276,7]
[393195051,1762309857533,-152.0,0.00038276,7]
[393195052,1762309857542,-152.0,0.00038276,7]
[393195053,1762309857551,-152.0,0.00038276,7]
[393195054,1762309857560,-152.0,0.00038276,7]
[393195055,1762309857569,-152.0,0.00038276,7]
[393195056,1762309857578,-152.0,0.00038276,7]
[393195057,1762309857589,-152.0,0.00038276,7]
[393195058,1762309857598,-152.0,0.00038276,7]
[393195059,1762309857607,-152.0,0.00038276,7]
[393195060,1762309857616,-152.0,0.00038276,7]
[393195061,1762309857625,-152.0,0.00038276,7]
[393195062,1762309857634,-152.0,0.00038276,7]
[393195063,1762309857645,-152.0,0.00038276,7]
[393195064,1762309857654,-152.0,0.00038276,7]
[393195065,1762309857663,-152.0,0.00038276,7]
[393195066,1762309857672,-152.0,0.00038276,7]
[393195067,1762309857682,-152.0,0.00038276,7]
[393195068,1762309857692,-152.0,0.00038276,7]
[393195069,1762309857701,-152.0,0.00038276,7]
[393195070,1762309857710,-214.16380288,0.00038276,7]
[393195071,1762309857720,-500.0,0.00038276,120]
[393195072,1762309857731,-500.0,0.00038276,120]
[393195073,1762309857741,-500.0,0.00038276,120]
[393195074,1762309857749,-500.0,0.00038276,120]
[393195075,1762309857759,-230.04902447,0.00038276,120]
[393195076,1762309857768,-1240.0,0.00038276,7]
[393195077,1762309857778,-1240.0,0.00038276,7]
[393195078,1762309857787,-1240.0,0.00038276,7]
[393195079,1762309857796,-195.9410458,0.00038276,7]
[393195080,1762309857823,-150.0,0.00037452,2]
[393195081,1762309857833,-800.51125621,0.00038276,7]
[393195082,1762309857847,-243.54769799,0.00038276,7]
[393195083,1762309857855,-1240.0,0.00038276,7]
[393195084,1762309857864,-236.77534325,0.00038276,7]
[393195085,1762309857926,-2141.0,0.00031134,2]
[393195086,1762309857935,-1003.22465675,0.00038276,7]
[393195087,1762309857944,-1240.0,0.00038276,7]
[393195088,1762309857953,-1186.22988293,0.00038276,7]
[393195089,1762309857964,-53.77011707,0.00038276,7]
[393195090,1762309857973,-560.32042773,0.00038276,7]
[393195091,1762309857984,-679.67957227,0.00038276,7]
[393195092,1762309857992,-499.93993611,0.00038276,7]
[393195093,1762309858003,-455.95,0.00038276,7]
[393195094,1762309858015,-284.11006389,0.00038276,7]
[393195095,1762309858024,-1240.0,0.00038276,7]
[393195096,1762309858033,-1240.0,0.00038276,7]
[393195097,1762309858042,-1240.0,0.00038276,7]
[393195098,1762309858051,-1240.0,0.00038276,7]
[393195099,1762309858061,-1240.0,0.00038276,7]
[393195100,1762309858070,-1240.0,0.00038276,7]
[393195101,1762309858080,-1240.0,0.00038276,7]
[393195102,1762309858090,-1240.0,0.00038276,7]
[393195103,1762309858099,-1240.0,0.00038276,7]
[393195104,1762309858110,-1240.0,0.00038276,7]
[393195105,1762309858120,-1240.0,0.00038276,7]
[393195106,1762309858130,-1240.0,0.00038276,7]
[393195107,1762309858139,-1240.0,0.00038276,7]
[393195108,1762309858148,-1240.0,0.00038276,7]
[393195109,1762309858158,-1240.0,0.00038276,7]
[393195110,1762309858167,-1240.0,0.00038276,7]
[393195111,1762309858176,-1213.0,0.00038276,7]
[393195112,1762309858184,-151.0,0.00038276,31]
[393195113,1762309858193,-249.631877,0.00038276,31]
[393195114,1762309858202,-151.0,0.00038276,31]
[393195115,1762309858212,-151.0,0.00038276,31]
[393195116,1762309858221,-500.0,0.00038276,30]
[393195117,1762309858231,-500.0,0.00038276,30]
[393195118,1762309858240,-500.0,0.00038276,30]
[393195119,1762309858249,-575.0235953,0.00038276,30]
[393195120,1762309858258,-153.173513,0.00038276,31]
[393195121,1762309858266,-151.0,0.00038276,31]
[393195122,1762309858276,-151.0,0.00038276,31]
[393195123,1762309858284,-151.0,0.00038276,31]
[393195124,1762309858294,-151.0,0.00038276,31]
[393195125,1762309858303,-152.57512,0.00038276,31]
[393195126,1762309858311,-151.0,0.00038276,31]
[393195127,1762309858320,-151.0,0.00038276,31]
[393195128,1762309858329,-151.0,0.00038276,31]
[393195129,1762309858339,-151.0,0.00038276,31]
[393195130,1762309858348,-151.0,0.00038276,31]
[393195131,1762309858357,-151.0,0.00038276,31]
[393195132,1762309858366,-179.481806,0.00038276,31]
[393195133,1762309858375,-151.0,0.00038276,31]
[393195134,1762309858384,-151.0,0.00038276,31]
[393195135,1762309858394,-158.416889,0.00038276,31]
[393195136,1762309858403,-432.579819,0.00038276,31]
[393195137,1762309858412,-432.579811,0.00038276,31]
[393195138,1762309858422,-156.478715,0.00038276,31]
[393195139,1762309858432,-151.0,0.00038276,31]
[393195140,1762309858442,-151.0,0.00038276,31]
[393195141,1762309858451,-191.587633,0.00038276,31]
[393195142,1762309858461,-151.0,0.00038276,31]
[393195143,1762309858471,-151.0,0.00038276,31]
[393195144,1762309858480,-151.0,0.00038276,31]
[393195145,1762309858490,-151.0,0.00038276,31]
[393195146,1762309858501,-151.0,0.00038276,31]
[393195147,1762309858511,-151.0,0.00038276,31]
[393195148,1762309858520,-151.0,0.00038276,14]
[393195149,1762309858531,-151.0,0.00038276,14]
[393195150,1762309858540,-151.0,0.00038276,31]
[393195151,1762309858549,-151.0,0.00038276,31]
[393195152,1762309858558,-151.0,0.00038276,31]
[393195153,1762309858567,-281.974888,0.00038276,31]
[393195154,1762309858576,-3213.97108,0.00038276,2]
[393195155,1762309858586,-291.198301,0.00038276,28]
[393195156,1762309858595,-291.198301,0.00038276,28]
[393195157,1762309858604,-291.198301,0.00038276,28]
[393195158,1762309858613,-291.198299,0.00038276,28]
[393195159,1762309858622,-151.0,0.00038276,31]
[393195160,1762309858632,-151.0,0.00038276,31]
[393195161,1762309858648,-330.136094,0.00038276,31]
[393195162,1762309858658,-330.136094,0.00038276,31]
[393195163,1762309858667,-330.136094,0.00038276,31]
[393195164,1762309858676,-330.136084,0.00038276,31]
[393195165,1762309858686,-151.0,0.00038276,31]
[393195166,1762309858695,-151.0,0.00038276,31]
[393195167,1762309858704,-151.0,0.00038276,31]
[393195168,1762309858715,-151.0,0.00038276,31]
[393195169,1762309858725,-151.0,0.00038276,31]
[393195170,1762309858734,-151.0,0.00038276,31]
[393195171,1762309858743,-151.0,0.00038276,31]
[393195172,1762309858753,-151.0,0.00038276,31]
[393195173,1762309858763,-151.0,0.00038276,31]
[393195174,1762309858772,-151.0,0.00038276,31]
[393195175,1762309858782,-151.0,0.00038276,31]
[393195176,1762309858791,-151.0,0.00038276,31]
[393195177,1762309858801,-151.0,0.00038276,31]
[393195178,1762309858812,-151.0,0.00038276,31]
[393195179,1762309858821,-151.0,0.00038276,31]
[393195180,1762309858830,-217.205769,0.00038276,31]
[393195181,1762309858840,-217.205769,0.00038276,31]
[393195182,1762309858849,-217.205769,0.00038276,31]
[393195183,1762309858859,-217.205772,0.00038276,31]
[393195184,1762309858868,-151.0,0.00038276,31]
[393195185,1762309858878,-151.0,0.00038276,31]
[393195186,1762309858888,-4677.52439639,0.00038277,2]
[393195187,1762309859019,508.80290062,0.00017999,2]
[393195188,1762309862235,500.0,0.00017999,2]
[393195189,1762309878103,525.82294279,0.00017999,2]
[393195191,1762309903512,500.0,0.00017999,2]
[393195193,1762309933914,151.0,0.00017999,2]
[393195195,1762309934511,151.0,0.00017999,2]
[393195196,1762309935124,151.0,0.00017999,2]
[393195197,1762309935746,151.0,0.00017999,2]
[393195199,1762309936404,151.0,0.00017999,2]
[393195200,1762309937255,151.0,0.00017999,2]
[393195201,1762309937917,151.0,0.00017999,2]
[393195202,1762309938512,151.0,0.00017999,2]
[393195203,1762309939198,151.0,0.00017999,2]
[393195204,1762309939862,151.0,0.00017999,2]
[393195206,1762309940520,151.0,0.00017999,2]
[393195207,1762309941122,151.0,0.00017999,2]
[393195208,1762309941756,151.0,0.00017999,2]
[393195209,1762309942386,151.0,0.00017999,2]
[393195211,1762309943059,151.0,0.00017999,2]
[393195212,1762309944138,151.0,0.00017999,2]
[393195214,1762309944767,151.0,0.00017999,2]
[393195215,1762309945448,151.0,0.00017999,2]
[393195216,1762309946060,151.0,0.00017999,2]
[393195217,1762309946748,151.0,0.00017999,2]
[393195218,1762309966651,500.0,0.00017999,2]
[393195219,1762309998008,525.50653201,0.00017999,2]
[393195223,1762310070563,500.0,0.00017999,2]
[393195226,1762310089270,13353.0,0.00038282,30]
[393195253,1762310290644,8928.6705252,0.00015003,2]
[393195254,1762310290671,127542.86298804,0.00015003,2]
[393195255,1762310290695,363486.94938454,0.00015003,2]
[393195256,1762310290724,987673.50710222,0.00015003,2]
[393195260,1762310340128,150.0,0.00022242,120]
[393195262,1762310341927,499958.48289778,0.00015,2]
[393195263,1762310341960,7693.77,0.00015,2]
[393195264,1762310341995,1000000.0,0.00015,2]
[393195265,1762310342019,5000.0,0.00015,2]
[393195266,1762310342039,20000.0,0.00015,2]
[393195267,1762310342814,-378.59246362,0.00015,2]
[393195268,1762310344305,-221.4657106,0.00015,2]
[393195269,1762310360569,-335.98298783,0.00015,2]
[393195270,1762310364593,-499.29131927,0.00015,2]
[393195271,1762310366121,-300.0,0.00015,2]
[393195272,1762310368926,-159.43005431,0.00015,2]
[393195273,1762310370405,-239.07,0.00015,2]
[393195275,1762310372656,-203.95013313,0.00015,2]
[393195276,1762310374328,-500.0,0.00015,2]
[393195278,1762310390618,-539.08214797,0.00015,2]
[393195279,1762310392436,-526.28160264,0.00015,2]
[393195280,1762310394626,-189.71665648,0.00015,2]
[393195281,1762310396215,-610.73826852,0.00015,2]
[393195282,1762310398515,-195.0,0.00015,2]
[393195283,1762310400119,-165.356719,0.00015,2]
[393195284,1762310401768,-300.0,0.00014999,2]
[393195285,1762310401794,-185.643281,0.00014999,2]
[393195286,1762310404413,-305.35706028,0.00014999,2]
[393195287,1762310420610,-311.63670324,0.00014924,2]
[393195288,1762310422209,-561.41402814,0.00014924,2]
[393195289,1762310429655,-159.65,0.00014924,2]
[393195290,1762310434798,-1142.65688362,0.00014924,2]
[393195291,1762310434832,-1267.94876521,0.0001499,2]
[393195292,1762310434864,-708.99965872,0.00014999,2]
[393195293,1762310434903,-523.91227166,0.00014999,2]
[393195294,1762310434941,-500.0,0.00014999,2]
[393195295,1762310436162,-7145.80194096,0.00015,2]
[393195296,1762310437625,-10000.01,0.00015,2]
[393195297,1762310437732,-10000.01,0.00015,2]
[393195298,1762310437840,-10000.01,0.00015,2]
[393195299,1762310437949,-10000.01,0.00015,2]
[393195300,1762310438083,-10000.01,0.00015,2]
[393195301,1762310438211,-10000.01,0.00015,2]
[393195302,1762310438390,-10000.01,0.00015,2]
[393195303,1762310438500,-10000.01,0.00015,2]
[393195304,1762310438617,-10000.01,0.00015,2]
[393195312,1762310452740,-10000.01,0.00015,2]
[393195313,1762310452909,-10000.01,0.00015,2]
[393195314,1762310453054,-10000.01,0.00015,2]
[393195315,1762310453175,-10000.01,0.00015,2]
[393195316,1762310453299,-10000.01,0.00015,2]
[393195317,1762310453407,-10000.01,0.00015,2]
[393195318,1762310453515,-10000.01,0.00015,2]
[393195319,1762310453628,-10000.01,0.00015,2]
[393195320,1762310453745,-10000.01,0.00015,2]
[393195321,1762310453867,-10000.01,0.00015,2]
[393195322,1762310467862,-503.47187809,0.00014999,2]
[393195323,1762310467896,-171.37691835,0.00014999,2]
[393195324,1762310467928,-211.06823477,0.00014999,2]
[393195325,1762310467962,-300.0,0.00014999,2]
[393195326,1762310468000,-500.0,0.00014999,2]
[393195327,1762310468137,-6628.17593758,0.00015,2]
[393195328,1762310468172,-500.0,0.00014999,2]
[393195329,1762310468183,-9500.01,0.00015,2]
[393195330,1762310468218,-10000.01,0.00015,2]
[393195331,1762310468273,-10000.01,0.00015,2]
[393195332,1762310468414,-500.0,0.00014999,2]
[393195333,1762310468454,-9000.01,0.00015,2]
[393195334,1762310468529,-10000.01,0.00015,2]
[393195335,1762310468643,-10000.01,0.00015,2]
[393195336,1762310468769,-500.0,0.00014999,2]
[393195337,1762310468807,-9000.01,0.00015,2]
[393195338,1762310468887,-10000.01,0.00015,2]
[393195339,1762310469033,-500.0,0.00014999,2]
[393195340,1762310469043,-9500.01,0.00015,2]
[393195342,1762310485991,-485.643281,0.00014924,2]
[393195343,1762310486025,-500.0,0.00014999,2]
[393195344,1762310486060,-500.0,0.00014999,2]
[393195345,1762310486092,-500.0,0.00014999,2]
[393195346,1762310486125,-500.0,0.00014999,2]
[393195347,1762310486156,-500.0,0.00014999,2]
[393195348,1762310486187,-500.0,0.00014999,2]
[393195349,1762310486219,-500.0,0.00014999,2]
[393195350,1762310486254,-500.0,0.00014999,2]
[393195351,1762310486285,-500.0,0.00014999,2]
[393195352,1762310486394,-500.0,0.00014999,2]
[393195353,1762310486424,-500.0,0.00014999,2]
[393195354,1762310486455,-500.0,0.00014999,2]
[393195355,1762310486486,-500.0,0.00014999,2]
[393195356,1762310486517,-500.0,0.00014999,2]
[393195357,1762310486548,-500.0,0.00014999,2]
[393195358,1762310486582,-500.0,0.00014999,2]
[393195359,1762310486614,-195.89321403,0.00014999,2]
[393195360,1762310486645,-500.0,0.00014999,2]
[393195361,1762310486677,-500.0,0.00014999,2]
[393195362,1762310486707,-108.22357194,0.00014999,2]
[393195363,1762310486950,-391.77642806,0.00014999,2]
[393195365,1762310486981,-500.0,0.00014999,2]
[393195366,1762310487013,-500.0,0.00014999,2]
[393195367,1762310487651,-420.49986606,0.00015,2]
[393195368,1762310487665,-7216.45714388,0.00015,2]
[393195369,1762310487691,-10000.01,0.00015,2]
[393195370,1762310487704,-10000.01,0.00015,2]
[393195371,1762310487722,-10000.01,0.00015,2]
[393195372,1762310487741,-10000.01,0.00015,2]
[393195373,1762310487754,-10000.01,0.00015,2]
[393195374,1762310487771,-10000.01,0.00015,2]
[393195375,1762310487785,-10000.01,0.00015,2]
[393195377,1762310489115,-10000.01,0.00015,2]
[393195381,1762310496148,-259.54487679,0.000147,2]